[Event "Betsys MČR v online bleskovém šachu 2021"]
[Site "Chess.com"]
[Date "2021.04.17"]
[Round "7"]
[White "SajdlJosef"]
[Black "Bavorak15"]
[Result "0-1"]
[WhiteElo "1844"]
[BlackElo "1624"]
[TimeControl "180+1"]
[EndTime "10:12:49 PDT"]
[Termination "Uživatel Bavorak15 zvítězil na čas"]

1. d4 {[%clk 0:03:00.9]} 1... Nf6 {[%clk 0:02:59]} 2. Nf3 {[%clk 0:02:59.2]}
2... g6 {[%clk 0:02:58.1]} 3. Bf4 {[%clk 0:02:59.3]} 3... Bg7 {[%clk 0:02:57.6]}
4. e3 {[%clk 0:02:59.5]} 4... c5 {[%clk 0:02:54.3]} 5. Nbd2 {[%clk 0:02:58.1]}
5... cxd4 {[%clk 0:02:52.6]} 6. exd4 {[%clk 0:02:57]} 6... d5 {[%clk 0:02:52.1]}
7. Bd3 {[%clk 0:02:50.3]} 7... O-O {[%clk 0:02:51.5]} 8. O-O {[%clk 0:02:45.1]}
8... Nc6 {[%clk 0:02:45]} 9. c3 {[%clk 0:02:43.5]} 9... Bg4 {[%clk 0:02:37.6]}
10. h3 {[%clk 0:02:40.9]} 10... Bxf3 {[%clk 0:02:37.3]} 11. Nxf3 {[%clk
0:02:39.8]} 11... e6 {[%clk 0:02:38.2]} 12. Re1 {[%clk 0:02:38.2]} 12... Qd7
{[%clk 0:02:30.9]} 13. Ne5 {[%clk 0:02:31]} 13... Nxe5 {[%clk 0:02:24.8]} 14.
Bxe5 {[%clk 0:02:29.7]} 14... b5 {[%clk 0:02:23.4]} 15. Qf3 {[%clk 0:02:17.3]}
15... Nh5 {[%clk 0:02:21.7]} 16. Bxg7 {[%clk 0:02:09]} 16... Nxg7 {[%clk
0:02:21.4]} 17. a3 {[%clk 0:02:06.7]} 17... a6 {[%clk 0:02:17.9]} 18. Qf4 {[%clk
0:02:01.5]} 18... Rac8 {[%clk 0:02:11.8]} 19. Qe5 {[%clk 0:01:58.5]} 19... Qc7
{[%clk 0:02:04.4]} 20. Qf6 {[%clk 0:01:56.6]} 20... Nh5 {[%clk 0:01:59.7]} 21.
Qg5 {[%clk 0:01:50.9]} 21... Qf4 {[%clk 0:01:21.7]} 22. Qxf4 {[%clk 0:01:38.8]}
22... Nxf4 {[%clk 0:01:22.6]} 23. Bf1 {[%clk 0:01:37.2]} 23... g5 {[%clk
0:01:18.9]} 24. g3 {[%clk 0:01:30.1]} 24... Ng6 {[%clk 0:01:17.9]} 25. a4 {[%clk
0:01:24.7]} 25... Rb8 {[%clk 0:00:59.4]} 26. axb5 {[%clk 0:01:00.2]} 26... axb5
{[%clk 0:01:00.3]} 27. Bd3 {[%clk 0:00:42.8]} 27... Kg7 {[%clk 0:00:48]} 28. f3
{[%clk 0:00:40.7]} 28... Rfc8 {[%clk 0:00:39.5]} 29. Kf2 {[%clk 0:00:37.6]}
29... b4 {[%clk 0:00:37.8]} 30. Rac1 {[%clk 0:00:29.8]} 30... bxc3 {[%clk
0:00:34.6]} 31. bxc3 {[%clk 0:00:27.1]} 31... Rb3 {[%clk 0:00:32.7]} 32. Bxg6
{[%clk 0:00:24.5]} 32... Kxg6 {[%clk 0:00:29.3]} 33. Re3 {[%clk 0:00:24.1]}
33... Rc4 {[%clk 0:00:21.8]} 34. Rc2 {[%clk 0:00:22.4]} 34... h6 {[%clk
0:00:18]} 35. Ke2 {[%clk 0:00:21.4]} 35... Ra3 {[%clk 0:00:14.2]} 36. Kd3 {[%clk
0:00:19.9]} 36... Rb3 {[%clk 0:00:12.5]} 37. Re1 {[%clk 0:00:18.4]} 37... Ra3
{[%clk 0:00:08.3]} 38. Rb1 {[%clk 0:00:17.5]} 38... Kf6 {[%clk 0:00:06.7]} 39.
g4 {[%clk 0:00:11]} 39... Kg6 {[%clk 0:00:06]} 40. Rf1 {[%clk 0:00:08.5]} 40...
Rb3 {[%clk 0:00:04]} 41. f4 {[%clk 0:00:06.9]} 41... f6 {[%clk 0:00:04.4]} 42.
fxg5 {[%clk 0:00:05.3]} 42... hxg5 {[%clk 0:00:03.9]} 43. Re1 {[%clk 0:00:04]}
43... Kf7 {[%clk 0:00:02.5]} 44. Rf1 {[%clk 0:00:02.7]} 44... Ra3 {[%clk
0:00:01.9]} 45. Rff2 {[%clk 0:00:02.4]} 45... Rb3 {[%clk 0:00:02]} 46. Rg2
{[%clk 0:00:02.3]} 46... Ra3 {[%clk 0:00:01.9]} 47. Rh2 {[%clk 0:00:02.6]} 47...
Rb3 {[%clk 0:00:02.4]} 48. h4 {[%clk 0:00:02.2]} 48... gxh4 {[%clk 0:00:02.8]}
49. Rxh4 {[%clk 0:00:01.9]} 49... Ra3 {[%clk 0:00:03.1]} 50. Rh5 {[%clk
0:00:01.6]} 50... Rb3 {[%clk 0:00:01.6]} 51. Rh7+ {[%clk 0:00:01.1]} 51... Kg6
{[%clk 0:00:01.3]} 0-1

[Event "Betsys MČR v online bleskovém šachu 2021"]
[Site "Chess.com"]
[Date "2021.04.17"]
[Round "7"]
[White "Maximon2012"]
[Black "Simaril76"]
[Result "1-0"]
[WhiteElo "1085"]
[BlackElo "710"]
[TimeControl "180+1"]
[EndTime "10:12:49 PDT"]
[Termination "Uživatel Maximon2012 zvítězil na čas"]

1. g3 {[%clk 0:02:55.3]} 1... c6 {[%clk 0:02:59.7]} 2. Bg2 {[%clk 0:02:52.7]}
2... d5 {[%clk 0:03:00]} 3. Nf3 {[%clk 0:02:51.2]} 3... Bf5 {[%clk 0:02:57.3]}
4. d3 {[%clk 0:02:49.7]} 4... h6 {[%clk 0:02:57.5]} 5. Bd2 {[%clk 0:02:46.8]}
5... Bh7 {[%clk 0:02:56.9]} 6. Nc3 {[%clk 0:02:41.9]} 6... Nf6 {[%clk
0:02:57.4]} 7. e3 {[%clk 0:02:40.1]} 7... Qc7 {[%clk 0:02:53.6]} 8. Qe2 {[%clk
0:02:37.1]} 8... e5 {[%clk 0:02:50.4]} 9. O-O {[%clk 0:02:30.6]} 9... e4 {[%clk
0:02:49.9]} 10. dxe4 {[%clk 0:02:29.4]} 10... dxe4 {[%clk 0:02:48.9]} 11. Nd4
{[%clk 0:02:26.3]} 11... c5 {[%clk 0:02:42]} 12. Nb3 {[%clk 0:02:20.4]} 12...
Nc6 {[%clk 0:02:42.1]} 13. Rae1 {[%clk 0:02:15]} 13... Nb4 {[%clk 0:02:32.9]}
14. Rc1 {[%clk 0:02:07.2]} 14... O-O-O {[%clk 0:02:19.3]} 15. f3 {[%clk
0:01:53.8]} 15... exf3 {[%clk 0:02:07.5]} 16. Qxf3 {[%clk 0:01:51.2]} 16... Be7
{[%clk 0:02:02.1]} 17. Bh3+ {[%clk 0:01:49.5]} 17... Kb8 {[%clk 0:01:55]} 18. a3
{[%clk 0:01:48.4]} 18... Nc6 {[%clk 0:01:49.1]} 19. e4 {[%clk 0:01:41]} 19...
Ne5 {[%clk 0:01:46]} 20. Qe3 {[%clk 0:01:31.4]} 20... Rd7 {[%clk 0:01:27.6]} 21.
Na4 {[%clk 0:01:23.3]} 21... Nc4 {[%clk 0:01:16]} 22. Qf4 {[%clk 0:01:12.7]}
22... Qxf4 {[%clk 0:01:10]} 23. Bxf4+ {[%clk 0:01:10.7]} 23... Bd6 {[%clk
0:01:05.9]} 24. Bxd6+ {[%clk 0:01:08.5]} 24... Rxd6 {[%clk 0:00:58.8]} 25. Nbxc5
{[%clk 0:01:06.4]} 25... Nxe4 {[%clk 0:00:42.3]} 26. Nxe4 {[%clk 0:01:01.7]}
26... Bxe4 {[%clk 0:00:40.2]} 27. Rxf7 {[%clk 0:01:00.6]} 27... g5 {[%clk
0:00:28.9]} 28. Nc5 {[%clk 0:00:56.7]} 28... Bc6 {[%clk 0:00:20.5]} 29. Re1
{[%clk 0:00:50.5]} 29... Rhd8 {[%clk 0:00:18.3]} 30. Bg2 {[%clk 0:00:44.4]}
30... Nxb2 {[%clk 0:00:16.3]} 31. Bxc6 {[%clk 0:00:39.3]} 31... bxc6 {[%clk
0:00:16]} 32. Nb7 {[%clk 0:00:36.9]} 32... R8d7 {[%clk 0:00:14.4]} 33. Re8+
{[%clk 0:00:28.2]} 33... Kxb7 {[%clk 0:00:14.1]} 34. Rxd7+ {[%clk 0:00:27.7]}
34... Rxd7 {[%clk 0:00:13.9]} 35. Re2 {[%clk 0:00:27]} 35... Nc4 {[%clk
0:00:13.2]} 36. c3 {[%clk 0:00:21]} 36... Nxa3 {[%clk 0:00:13.3]} 37. Rb2+
{[%clk 0:00:20.8]} 37... Kc7 {[%clk 0:00:12.9]} 38. Kf2 {[%clk 0:00:20.4]} 38...
Nc4 {[%clk 0:00:12.3]} 39. Kf3 {[%clk 0:00:19.4]} 39... a5 {[%clk 0:00:12.2]}
40. Re2 {[%clk 0:00:17.4]} 40... a4 {[%clk 0:00:11.7]} 41. Ra2 {[%clk
0:00:16.2]} 41... a3 {[%clk 0:00:10.8]} 42. Ke2 {[%clk 0:00:14.6]} 42... c5
{[%clk 0:00:09.1]} 43. Ke1 {[%clk 0:00:13.8]} 43... Kc6 {[%clk 0:00:09.2]} 44.
Kf2 {[%clk 0:00:13.7]} 44... Kd5 {[%clk 0:00:09.2]} 45. Kf3 {[%clk 0:00:13.7]}
45... Ke5 {[%clk 0:00:08.1]} 46. Kg4 {[%clk 0:00:13.6]} 46... Rd3 {[%clk
0:00:07.6]} 47. h3 {[%clk 0:00:12.3]} 47... Rxc3 {[%clk 0:00:06.8]} 48. h4
{[%clk 0:00:10.7]} 48... Nd6 {[%clk 0:00:06.4]} 49. hxg5 {[%clk 0:00:10.1]}
49... hxg5 {[%clk 0:00:06.5]} 50. Kxg5 {[%clk 0:00:10.4]} 50... Nf7+ {[%clk
0:00:05]} 51. Kh4 {[%clk 0:00:11]} 51... Rf3 {[%clk 0:00:02.9]} 52. Kh3 {[%clk
0:00:11.1]} 52... c4 {[%clk 0:00:02.4]} 53. Kg2 {[%clk 0:00:10.6]} 53... Rb3
{[%clk 0:00:01.7]} 54. Kf2 {[%clk 0:00:10.2]} 54... c3 {[%clk 0:00:01.7]} 55.
Ke1 {[%clk 0:00:10.1]} 1-0

[Event "Betsys MČR v online bleskovém šachu 2021"]
[Site "Chess.com"]
[Date "2021.04.17"]
[Round "7"]
[White "OlifantCZ"]
[Black "Patriktesko"]
[Result "1-0"]
[WhiteElo "2291"]
[BlackElo "2072"]
[TimeControl "180+1"]
[EndTime "10:12:53 PDT"]
[Termination "Uživatel OlifantCZ zvítězil na čas"]

1. c4 {[%clk 0:02:59.7]} 1... c6 {[%clk 0:02:59.9]} 2. g3 {[%clk 0:02:59.3]}
2... d5 {[%clk 0:02:59.9]} 3. Bg2 {[%clk 0:02:59.1]} 3... dxc4 {[%clk
0:02:59.1]} 4. Nf3 {[%clk 0:02:57.2]} 4... Nf6 {[%clk 0:02:58.8]} 5. O-O {[%clk
0:02:57.2]} 5... g6 {[%clk 0:02:56.6]} 6. Na3 {[%clk 0:02:56.8]} 6... Be6 {[%clk
0:02:56.1]} 7. Qc2 {[%clk 0:02:55.4]} 7... Bg7 {[%clk 0:02:56]} 8. Nxc4 {[%clk
0:02:54.8]} 8... Bxc4 {[%clk 0:02:56.9]} 9. Qxc4 {[%clk 0:02:54.6]} 9... O-O
{[%clk 0:02:57.5]} 10. Rb1 {[%clk 0:02:45.7]} 10... Nbd7 {[%clk 0:02:56.9]} 11.
b4 {[%clk 0:02:40.5]} 11... a6 {[%clk 0:02:55.6]} 12. d3 {[%clk 0:02:36.6]}
12... Qc7 {[%clk 0:02:51]} 13. a4 {[%clk 0:02:26.9]} 13... Ne5 {[%clk
0:02:49.5]} 14. Qc2 {[%clk 0:02:25.6]} 14... Nxf3+ {[%clk 0:02:48.9]} 15. Bxf3
{[%clk 0:02:24.4]} 15... Qd6 {[%clk 0:02:44.4]} 16. Bf4 {[%clk 0:02:20.8]} 16...
e5 {[%clk 0:02:41]} 17. Be3 {[%clk 0:02:20.5]} 17... Nd5 {[%clk 0:02:40.4]} 18.
Bc5 {[%clk 0:02:19.5]} 18... Qe6 {[%clk 0:02:34]} 19. Bxf8 {[%clk 0:02:12.7]}
19... Bxf8 {[%clk 0:02:33.1]} 20. Bxd5 {[%clk 0:02:12.7]} 20... Qxd5 {[%clk
0:02:31.1]} 21. Qb3 {[%clk 0:02:01]} 21... Qd6 {[%clk 0:02:27.7]} 22. Rfc1
{[%clk 0:01:55.4]} 22... h5 {[%clk 0:02:26.9]} 23. h4 {[%clk 0:01:51.8]} 23...
Be7 {[%clk 0:02:15.4]} 24. Qc4 {[%clk 0:01:47.6]} 24... g5 {[%clk 0:02:09.7]}
25. hxg5 {[%clk 0:01:46.3]} 25... Bxg5 {[%clk 0:02:09.4]} 26. Rc2 {[%clk
0:01:45.8]} 26... Kg7 {[%clk 0:02:00.4]} 27. b5 {[%clk 0:01:43.2]} 27... axb5
{[%clk 0:01:48.8]} 28. axb5 {[%clk 0:01:42.7]} 28... Rh8 {[%clk 0:01:47.2]} 29.
bxc6 {[%clk 0:01:41.8]} 29... bxc6 {[%clk 0:01:46.9]} 30. Rb7 {[%clk 0:01:36.1]}
30... Qf6 {[%clk 0:01:27.7]} 31. Qxc6 {[%clk 0:01:32.4]} 31... h4 {[%clk
0:01:27.6]} 32. Qxf6+ {[%clk 0:01:30.9]} 32... Kxf6 {[%clk 0:01:20.1]} 33. Rc6+
{[%clk 0:01:22]} 33... Kg7 {[%clk 0:01:13.9]} 34. Rcc7 {[%clk 0:01:18.6]} 34...
Rf8 {[%clk 0:01:12.7]} 35. g4 {[%clk 0:01:14.6]} 35... Kg6 {[%clk 0:01:09.9]}
36. Kg2 {[%clk 0:01:13.1]} 36... Bf4 {[%clk 0:00:58.2]} 37. e3 {[%clk 0:01:11]}
37... Bg5 {[%clk 0:00:58.4]} 38. Rc6+ {[%clk 0:01:02.9]} 38... f6 {[%clk
0:00:55.6]} 39. Rb4 {[%clk 0:00:53]} 39... Ra8 {[%clk 0:00:52.4]} 40. f4 {[%clk
0:00:47.9]} 40... Ra2+ {[%clk 0:00:42.6]} 41. Kh3 {[%clk 0:00:47.3]} 41... exf4
{[%clk 0:00:42.1]} 42. exf4 {[%clk 0:00:46.9]} 42... Bh6 {[%clk 0:00:40.8]} 43.
g5 {[%clk 0:00:46.6]} 43... Bg7 {[%clk 0:00:39.6]} 44. gxf6 {[%clk 0:00:42.1]}
44... Bf8 {[%clk 0:00:38.1]} 45. Rb7 {[%clk 0:00:37]} 45... Kf5 {[%clk
0:00:28.8]} 46. Kxh4 {[%clk 0:00:30.2]} 46... Kxf4 {[%clk 0:00:27.9]} 47. Kh5
{[%clk 0:00:30]} 47... Rg2 {[%clk 0:00:22.2]} 48. Rb5 {[%clk 0:00:25.4]} 48...
Rg3 {[%clk 0:00:18.3]} 49. Rc4+ {[%clk 0:00:24.6]} 49... Ke3 {[%clk 0:00:17.2]}
50. Rg4 {[%clk 0:00:15.1]} 50... Rh3+ {[%clk 0:00:14.8]} 51. Kg6 {[%clk
0:00:15.3]} 51... Kxd3 {[%clk 0:00:14.4]} 52. Rb3+ {[%clk 0:00:15]} 52... Kc2
{[%clk 0:00:11.7]} 53. Rxh3 {[%clk 0:00:14.5]} 53... Bc5 {[%clk 0:00:10]} 54.
Rc4+ {[%clk 0:00:13.1]} 54... Kd2 {[%clk 0:00:09.1]} 55. Rxc5 {[%clk 0:00:13.5]}
55... Ke2 {[%clk 0:00:09.1]} 56. Ra5 {[%clk 0:00:13.2]} 56... Kf2 {[%clk
0:00:10]} 57. Ra2+ {[%clk 0:00:13.3]} 57... Kg1 {[%clk 0:00:10.1]} 58. Rb3
{[%clk 0:00:13.2]} 1-0

[Event "Betsys MČR v online bleskovém šachu 2021"]
[Site "Chess.com"]
[Date "2021.04.17"]
[Round "7"]
[White "Naty139"]
[Black "Richarlito"]
[Result "0-1"]
[WhiteElo "2219"]
[BlackElo "2043"]
[TimeControl "180+1"]
[EndTime "10:12:54 PDT"]
[Termination "Uživatel Richarlito zvítězil na čas"]

1. e4 {[%clk 0:03:00.9]} 1... c6 {[%clk 0:02:57.8]} 2. d4 {[%clk 0:02:59.9]}
2... d5 {[%clk 0:02:58.7]} 3. Nd2 {[%clk 0:02:59.9]} 3... dxe4 {[%clk
0:02:58.7]} 4. Nxe4 {[%clk 0:03:00.8]} 4... Bf5 {[%clk 0:02:59.2]} 5. Ng3 {[%clk
0:03:00.7]} 5... Bg6 {[%clk 0:03:00.1]} 6. Nh3 {[%clk 0:02:59.6]} 6... e6 {[%clk
0:02:55.4]} 7. Nf4 {[%clk 0:02:59.6]} 7... Bd6 {[%clk 0:02:55.6]} 8. h4 {[%clk
0:02:59.2]} 8... Bxf4 {[%clk 0:02:53.8]} 9. Bxf4 {[%clk 0:02:58.1]} 9... h6
{[%clk 0:02:53.9]} 10. h5 {[%clk 0:02:58.1]} 10... Bh7 {[%clk 0:02:54.3]} 11. c3
{[%clk 0:02:56.9]} 11... Nf6 {[%clk 0:02:54.6]} 12. Bd3 {[%clk 0:02:56.3]} 12...
Bxd3 {[%clk 0:02:53.9]} 13. Qxd3 {[%clk 0:02:57.2]} 13... Nbd7 {[%clk 0:02:54]}
14. O-O-O {[%clk 0:02:55.4]} 14... Nb6 {[%clk 0:02:53.8]} 15. c4 {[%clk
0:02:50.1]} 15... c5 {[%clk 0:02:42.9]} 16. dxc5 {[%clk 0:02:27.2]} 16... Qxd3
{[%clk 0:02:42.6]} 17. Rxd3 {[%clk 0:02:27.8]} 17... Nxc4 {[%clk 0:02:42.8]} 18.
b3 {[%clk 0:02:24.5]} 18... Na5 {[%clk 0:02:39.5]} 19. Rhd1 {[%clk 0:02:08.4]}
19... Rc8 {[%clk 0:02:37.9]} 20. b4 {[%clk 0:02:07.6]} 20... Nc6 {[%clk
0:02:35.9]} 21. a3 {[%clk 0:02:07.6]} 21... Nd5 {[%clk 0:02:35.5]} 22. Bd6
{[%clk 0:02:02.8]} 22... b6 {[%clk 0:02:06.3]} 23. Kb2 {[%clk 0:01:57.9]} 23...
bxc5 {[%clk 0:01:59.4]} 24. Bxc5 {[%clk 0:01:57]} 24... f6 {[%clk 0:01:55.2]}
25. Re1 {[%clk 0:01:55.2]} 25... Kf7 {[%clk 0:01:55.1]} 26. Ne4 {[%clk
0:01:53.5]} 26... Rc7 {[%clk 0:01:24.9]} 27. Nd6+ {[%clk 0:01:52.9]} 27... Kg8
{[%clk 0:01:25.1]} 28. Rxe6 {[%clk 0:01:48.6]} 28... Nf4 {[%clk 0:01:21.6]} 29.
Re8+ {[%clk 0:01:46.9]} 29... Kh7 {[%clk 0:01:21.8]} 30. Rxh8+ {[%clk
0:01:46.7]} 30... Kxh8 {[%clk 0:01:21.9]} 31. Re3 {[%clk 0:01:36.5]} 31... Ne5
{[%clk 0:01:16.7]} 32. g3 {[%clk 0:01:22.5]} 32... Nfd3+ {[%clk 0:01:15.5]} 33.
Kb3 {[%clk 0:01:11.3]} 33... Nxf2 {[%clk 0:00:56.2]} 34. Nb5 {[%clk 0:00:56.6]}
34... Rd7 {[%clk 0:00:49.2]} 35. Nxa7 {[%clk 0:00:44.5]} 35... Nfd3 {[%clk
0:00:48.8]} 36. Nb5 {[%clk 0:00:38.5]} 36... Rd5 {[%clk 0:00:43.5]} 37. a4
{[%clk 0:00:21.6]} 37... Nxc5+ {[%clk 0:00:37]} 38. bxc5 {[%clk 0:00:22.5]}
38... Rxc5 {[%clk 0:00:37.4]} 39. Rc3 {[%clk 0:00:19]} 39... Rd5 {[%clk
0:00:31.6]} 40. Kb4 {[%clk 0:00:17.9]} 40... Kg8 {[%clk 0:00:30.6]} 41. Rc8+
{[%clk 0:00:17.6]} 41... Kf7 {[%clk 0:00:30.1]} 42. Nc7 {[%clk 0:00:16.5]} 42...
Rd4+ {[%clk 0:00:26.4]} 43. Kb5 {[%clk 0:00:15.4]} 43... Nd3 {[%clk 0:00:20.8]}
44. Ra8 {[%clk 0:00:14.3]} 44... Rb4+ {[%clk 0:00:20.5]} 45. Kc6 {[%clk
0:00:14]} 45... Rc4+ {[%clk 0:00:20]} 46. Kd7 {[%clk 0:00:13.4]} 46... Ne5+
{[%clk 0:00:19.4]} 47. Kd6 {[%clk 0:00:12.5]} 47... Rd4+ {[%clk 0:00:17.1]} 48.
Kc5 {[%clk 0:00:12.4]} 48... Rc4+ {[%clk 0:00:16.8]} 49. Kb6 {[%clk 0:00:11.4]}
49... Nd7+ {[%clk 0:00:14.7]} 50. Kb7 {[%clk 0:00:11.3]} 50... Nc5+ {[%clk
0:00:13.3]} 51. Kc8 {[%clk 0:00:10.9]} 51... Rxa4 {[%clk 0:00:12.1]} 52. Rb8
{[%clk 0:00:09.3]} 52... Rc4 {[%clk 0:00:11.5]} 53. Kd8 {[%clk 0:00:06.7]} 53...
Rd4+ {[%clk 0:00:10.3]} 54. Kc8 {[%clk 0:00:05.7]} 54... Rg4 {[%clk 0:00:08.8]}
55. Rb5 {[%clk 0:00:04.2]} 55... Ne6 {[%clk 0:00:07.8]} 0-1

[Event "Betsys MČR v online bleskovém šachu 2021"]
[Site "Chess.com"]
[Date "2021.04.17"]
[Round "7"]
[White "FutureFideMasseur"]
[Black "AJedlicka"]
[Result "1-0"]
[WhiteElo "2444"]
[BlackElo "2210"]
[TimeControl "180+1"]
[EndTime "10:12:55 PDT"]
[Termination "Uživatel FutureFideMasseur zvítězil na čas"]

1. d4 {[%clk 0:03:00.9]} 1... Nf6 {[%clk 0:02:59]} 2. c4 {[%clk 0:03:01]} 2...
e6 {[%clk 0:02:58.9]} 3. Nf3 {[%clk 0:03:00.8]} 3... d5 {[%clk 0:02:57.8]} 4.
Nc3 {[%clk 0:02:59.2]} 4... Be7 {[%clk 0:02:57]} 5. Bg5 {[%clk 0:02:57.5]} 5...
Nbd7 {[%clk 0:02:55.4]} 6. e3 {[%clk 0:02:57.5]} 6... h6 {[%clk 0:02:55.3]} 7.
Bh4 {[%clk 0:02:57.1]} 7... O-O {[%clk 0:02:54.7]} 8. Be2 {[%clk 0:02:52.9]}
8... dxc4 {[%clk 0:02:51.8]} 9. Bxc4 {[%clk 0:02:52.8]} 9... c5 {[%clk
0:02:51.4]} 10. O-O {[%clk 0:02:52.8]} 10... b6 {[%clk 0:02:51.1]} 11. Qe2
{[%clk 0:02:49.9]} 11... Bb7 {[%clk 0:02:50.6]} 12. Rad1 {[%clk 0:02:48.9]}
12... Qc8 {[%clk 0:02:36.1]} 13. Ne5 {[%clk 0:02:19.5]} 13... Re8 {[%clk
0:02:29.9]} 14. Nxd7 {[%clk 0:02:05.7]} 14... Nxd7 {[%clk 0:02:25.8]} 15. Bxe7
{[%clk 0:02:04.5]} 15... Rxe7 {[%clk 0:02:25.5]} 16. d5 {[%clk 0:02:03.5]} 16...
exd5 {[%clk 0:02:16.8]} 17. Bxd5 {[%clk 0:01:52.4]} 17... Nf6 {[%clk 0:02:14.5]}
18. Bxb7 {[%clk 0:01:49.9]} 18... Qxb7 {[%clk 0:02:13.8]} 19. Rd6 {[%clk
0:01:49.5]} 19... Rae8 {[%clk 0:02:10.6]} 20. Rfd1 {[%clk 0:01:48.1]} 20... Re6
{[%clk 0:02:09.1]} 21. R6d2 {[%clk 0:01:38.3]} 21... Ne4 {[%clk 0:02:04.3]} 22.
Nxe4 {[%clk 0:01:37.6]} 22... Qxe4 {[%clk 0:02:03.3]} 23. h3 {[%clk 0:01:34.1]}
23... R6e7 {[%clk 0:02:02.3]} 24. Qb5 {[%clk 0:01:30]} 24... Qb7 {[%clk
0:01:54.9]} 25. a4 {[%clk 0:01:28.6]} 25... a6 {[%clk 0:01:54]} 26. Qb3 {[%clk
0:01:27]} 26... b5 {[%clk 0:01:52.5]} 27. axb5 {[%clk 0:01:24.9]} 27... axb5
{[%clk 0:01:51.9]} 28. Rd5 {[%clk 0:01:23.3]} 28... Re5 {[%clk 0:01:46.2]} 29.
Rd7 {[%clk 0:01:22.9]} 29... c4 {[%clk 0:01:38.6]} 30. Rxb7 {[%clk 0:01:20.2]}
30... cxb3 {[%clk 0:01:38]} 31. Rd3 {[%clk 0:01:20.3]} 31... Rc8 {[%clk
0:01:27.3]} 32. Rxb3 {[%clk 0:01:20.3]} 32... Rc1+ {[%clk 0:01:26.6]} 33. Kh2
{[%clk 0:01:20.1]} 33... Rc2 {[%clk 0:01:25]} 34. Rb8+ {[%clk 0:01:13.2]} 34...
Kh7 {[%clk 0:01:24.1]} 35. R8xb5 {[%clk 0:01:13.2]} 35... Rxb5 {[%clk
0:01:22.8]} 36. Rxb5 {[%clk 0:01:14.1]} 36... Rxf2 {[%clk 0:01:22.4]} 37. Kg3
{[%clk 0:01:14.3]} 37... Rc2 {[%clk 0:01:21.4]} 38. Kf3 {[%clk 0:01:13.9]} 38...
g6 {[%clk 0:01:19.6]} 39. Rb7 {[%clk 0:01:12.1]} 39... Kg7 {[%clk 0:01:19]} 40.
b4 {[%clk 0:01:12.4]} 40... h5 {[%clk 0:01:18.7]} 41. b5 {[%clk 0:01:10.1]}
41... Rb2 {[%clk 0:01:18.1]} 42. h4 {[%clk 0:01:08.5]} 42... Kf6 {[%clk
0:01:17.8]} 43. g3 {[%clk 0:01:07.1]} 43... Rb3 {[%clk 0:01:14.9]} 44. Ke4
{[%clk 0:01:05.4]} 44... Ke6 {[%clk 0:01:11.9]} 45. Kd4 {[%clk 0:01:03.3]} 45...
f6 {[%clk 0:01:07.2]} 46. b6 {[%clk 0:00:51.4]} 46... Kf5 {[%clk 0:01:03.7]} 47.
Kc5 {[%clk 0:00:43.6]} 47... Rxe3 {[%clk 0:00:59.7]} 48. Rd7 {[%clk 0:00:42.6]}
48... g5 {[%clk 0:00:50.6]} 49. hxg5 {[%clk 0:00:41]} 49... fxg5 {[%clk
0:00:50.1]} 50. Rd4 {[%clk 0:00:35.2]} 50... Rc3+ {[%clk 0:00:40.3]} 51. Rc4
{[%clk 0:00:32.8]} 51... Re3 {[%clk 0:00:33.8]} 52. b7 {[%clk 0:00:29.9]} 52...
Re8 {[%clk 0:00:32.8]} 53. Kb6 {[%clk 0:00:30.1]} 53... Rd8 {[%clk 0:00:14.8]}
54. Kc7 {[%clk 0:00:28.2]} 54... Rh8 {[%clk 0:00:14.3]} 55. b8=Q {[%clk
0:00:27.9]} 55... Rxb8 {[%clk 0:00:13.7]} 56. Kxb8 {[%clk 0:00:28.2]} 56... g4
{[%clk 0:00:13.3]} 57. Rc5+ {[%clk 0:00:23.8]} 57... Ke4 {[%clk 0:00:05.3]} 58.
Rc3 {[%clk 0:00:23.1]} 58... h4 {[%clk 0:00:03.8]} 59. gxh4 {[%clk 0:00:22.8]}
59... Kf4 {[%clk 0:00:03.4]} 60. Kc7 {[%clk 0:00:20.6]} 60... g3 {[%clk
0:00:02.6]} 61. h5 {[%clk 0:00:20.4]} 1-0